[Event "360 One Wealth GP-3 2024"]
[Site "Mumbai"]
[Date "2024.02.11"]
[Round "7.12"]
[White "Miranka Trishad"]
[Black "Patel Shubh"]
[Result "1-0"]
[ECO "B13"]
[WhiteElo "1341"]
[BlackElo "1083"]
[Annotator "NA RC"]
[PlyCount "119"]
[EventDate "2024.02.04"]
[EventType "swiss"]
[EventCountry "IND"]
[SourceTitle "playchess.com"]
[Source "ChessBase"]
[SourceQuality "1"]
[TimeControl "5400+30"]

1. e4 {[%emt 0:01:54]} c6 {[%emt 0:02:12]} 2. d4 {[%emt 0:00:16]} d5 {[%emt 0:01:08]} 3. exd5 {[%emt 0:01:48]} cxd5 {[%emt 0:00:53]} 4. Bd3 {[%emt 0:00:55]} Nc6 {[%emt 0:02:00]} 5. c3 {[%emt 0:01:43]} Nf6 {[%emt 0:01:44]} 6. Ne2 {[%emt 0:06:18]} Bg4 {[%emt 0:01:51]} 7. Bf4 {[%emt 0:02:10]} e6 {[%emt 0:02:48]} 8. Nd2 {[%emt 0:08:33]} Bd6 {[%emt 0:02:21]} 9. Bg3 {[%emt 0:01:44]} Qc7 {[%emt 0:03:00]} 10. Qa4 {[%emt 0:13:29]} O-O {[%emt 0:06:39]} 11. O-O-O {[%emt 0:04:54]} e5 {[%emt 0:02:00]} 12. dxe5 {[%emt 0:03:32]} Nxe5 {[%emt 0:03:55]} 13. Bxe5 {[%emt 0:01:21]} Bxe5 {[%emt 0:01:06]} 14. f3 {[%emt 0:00:59]} Be6 {[%emt 0:02:09]} 15. Nb3 {[%emt 0:01:27]} a6 {[%emt 0:01:14]} 16. Nbd4 {[%emt 0:00:39]} b5 {[%emt 0:02:45]} 17. Qc2 {[%emt 0:01:03]} Rfc8 {[%emt 0:01:34]} 18. Kb1 {[%emt 0:03:59]} Kh8 {[%emt 0:06:54]} 19. g4 {[%emt 0:06:32]} b4 {[%emt 0:00:21]} 20. Nxe6 {[%emt 0:00:46]} fxe6 {[%emt 0:00:17]} 21. cxb4 {[%emt 0:01:18]} Qb6 {[%emt 0:03:58]} 22. Qa4 {[%emt 0:03:13]} a5 {[%emt 0:03:23]} 23. b5 {[%emt 0:04:53]} Nd7 {[%emt 0:01:59]} 24. f4 {[%emt 0:01:34]} Bf6 {[%emt 0:03:19]} 25. g5 {[%emt 0:03:29]} Be7 {[%emt 0:01:11]} 26. Nd4 {[%emt 0:09:33]} Rab8 {[%emt 0:02:53]} 27. Rd2 {[%emt 0:02:33]} Nc5 {[%emt 0:01:06]} 28. Qd1 {[%emt 0:00:48]} Nxd3 {[%emt 0:00:38]} 29. Rxd3 {[%emt 0:01:00]} Bc5 {[%emt 0:00:09]} 30. a4 {[%emt 0:01:48]} Bxd4 {[%emt 0:00:49]} 31. Rxd4 {[%emt 0:00:01]} Rc5 {[%emt 0:00:38]} 32. Re1 {[%emt 0:05:17]} Qd6 {[%emt 0:01:53]} 33. Qe2 {[%emt 0:02:06]} Rb6 {[%emt 0:01:00]} 34. f5 {[%emt 0:01:48]} Qe7 {[%emt 0:03:41]} 35. fxe6 {[%emt 0:00:52]} Qxg5 {[%emt 0:00:39]} 36. e7 {[%emt 0:00:27]} Qg6+ {[%emt 0:01:10]} 37. Ka1 {[%emt 0:01:53]} Qe8 {[%emt 0:00:48]} 38. Qh5 {[%emt 0:01:05]} Rb8 {[%emt 0:02:19]} 39. Rxd5 {[%emt 0:00:41]} Qxh5 {[%emt 0:02:01]} 40. Rxh5 Rcc8 {[%emt 0:00:28]} 41. Rhe5 {[%emt 0:00:37]} Re8 {[%emt 0:00:30]} 42. Ka2 {[%emt 0:00:12]} g6 {[%emt 0:00:07]} 43. Ka3 {[%emt 0:00:11]} Rb6 {[%emt 0:01:15]} 44. b4 {[%emt 0:00:22]} Rd6 {[%emt 0:00:34]} 45. R1e3 {[%emt 0:00:56]} axb4+ {[%emt 0:01:15]} 46. Kxb4 {[%emt 0:00:01]} Rd4+ {[%emt 0:00:40]} 47. Ka5 {[%emt 0:00:33]} Ra8+ {[%emt 0:01:05]} 48. Kb6 {[%emt 0:00:06]} Re8 {[%emt 0:00:58]} 49. a5 {[%emt 0:00:22]} Kg7 {[%emt 0:00:17]} 50. Kc7 {[%emt 0:00:22]} Kf6 {[%emt 0:01:46]} 51. Re6+ {[%emt 0:00:20]} Kf7 {[%emt 0:00:41]} 52. Rd6 {[%emt 0:00:18]} Rb4 {[%emt 0:03:30]} 53. Kd7 {[%emt 0:00:21]} Rb8 {[%emt 0:04:11]} 54. e8=Q+ {[%emt 0:00:30]} Rxe8 {[%emt 0:00:17]} 55. Rxe8 {[%emt 0:00:01]} Rxb5 {[%emt 0:00:11]} 56. Re7+ {[%emt 0:00:16]} Kf8 {[%emt 0:01:21]} 57. Rf6+ {[%emt 0:00:32]} Kg8 {[%emt 0:00:41]} 58. Rb6 {[%emt 0:00:01]} Rd5+ {[%emt 0:00:58]} 59. Ke6 {[%emt 0:00:09]} Rd8 {[%emt 0:00:50]} 60. a6 {[%emt 0:00:16]} 1-0

[Event "360 One Wealth GP-3 2024"]
[Site "Mumbai"]
[Date "2024.02.11"]
[Round "7.15"]
[White "Joglekar, Abhijit"]
[Black "Shaurya Kaushal Shah"]
[Result "1-0"]
[ECO "A85"]
[WhiteElo "1502"]
[BlackElo "1063"]
[Annotator "NA RC"]
[PlyCount "145"]
[EventDate "2024.02.04"]
[EventType "swiss"]
[EventCountry "IND"]
[SourceTitle "playchess.com"]
[Source "ChessBase"]
[SourceQuality "1"]
[TimeControl "5400+30"]

1. d4 {[%emt 0:01:07]} e6 {[%emt 0:00:08]} 2. c4 f5 {[%emt 0:00:22]} 3. Nc3 Nf6 {[%emt 0:00:20]} 4. Qc2 Bb4 {[%emt 0:00:57]} 5. Bd2 O-O {[%emt 0:01:06]} 6. f3 Bxc3 {[%emt 0:01:40]} 7. Bxc3 b6 {[%emt 0:00:54]} 8. e3 Bb7 {[%emt 0:03:28]} 9. Bd3 {[%emt 0:01:18]} d6 {[%emt 0:00:03]} 10. Ne2 {[%emt 0:00:17]} Nbd7 {[%emt 0:01:03]} 11. O-O {[%emt 0:00:11]} Nh5 {[%emt 0:10:07]} 12. Rae1 {[%emt 0:07:44]} Qg5 {[%emt 0:02:32]} 13. Bd2 {[%emt 0:04:58]} Qf6 {[%emt 0:03:11]} 14. Ng3 {[%emt 0:01:12]} Nxg3 {[%emt 0:00:58]} 15. hxg3 {[%emt 0:06:14]} Rf7 {[%emt 0:04:14]} 16. Kf2 {[%emt 0:00:19]} e5 {[%emt 0:01:44]} 17. d5 e4 18. Be2 Re8 19. f4 c6 20. Bc3 Qe7 21. dxc6 Bxc6 22. b4 Nf6 23. Bxf6 Qxf6 24. Rd1 Rfe7 25. Rd4 g5 26. Rh1 g4 27. Qd1 Rd8 28. Rh5 h6 29. Qd2 Be8 30. Rh1 Bf7 31. Rd1 Red7 32. Qc2 h5 33. R1d2 h4 34. c5 Rc7 35. Qd1 d5 36. cxb6 axb6 37. Bc4 Rcd7 38. Bxd5 Bxd5 39. Rxd5 Rxd5 40. Rxd5 Rxd5 41. Qxd5+ Kg7 42. Qd2 h3 43. gxh3 gxh3 44. Kg1 Qg6 45. Kh2 Qg4 46. Qf2 b5 47. Qf1 Qh5 48. Qxb5 Qf3 49. Qd7+ Kf6 50. Qd6+ Kf7 51. Qd2 Qf1 52. a4 Qd3 53. Qf2 Qb3 54. Kxh3 Qxa4 55. Qd2 Qb5 56. Kg2 Ke6 57. Kf2 Qc4 58. Qb2 Qd3 59. Qe5+ Kf7 60. Qxf5+ Kg7 61. Qe5+ Kh7 62. Qb2 Qd7 63. Qd4 Qe6 64. Kg2 Qa2+ 65. Kh3 Qe6+ 66. g4 Qh6+ 67. Kg2 Qg6 68. Qd7+ Kh8 69. Qd8+ Kh7 70. Qh4+ Kg8 71. Qg5 Kh8 72. Qh5+ Qxh5 73. gxh5 1-0